fUST/lending_fUST_20260426
["ID","MTS","AMOUNT","RATE_DAILY","PERIOD"]
[421176732,1777210232184,-414.9173911,0.00014296,2]
[421176734,1777210232194,-500.0,0.00014296,2]
[421176736,1777210232204,-500.0,0.00014296,2]
[421176738,1777210232214,-500.0,0.00014296,2]
[421176740,1777210232223,-500.0,0.00014296,2]
[421176742,1777210232233,-500.0,0.00014296,2]
[421176743,1777210232243,-500.0,0.00014296,2]
[421176745,1777210232252,-172.59239812,0.00014296,2]
[421176747,1777210232262,-615.77568782,0.00014296,2]
[421176749,1777210232271,-500.0,0.00014296,2]
[421176751,1777210232281,-500.0,0.00014296,2]
[421176753,1777210232291,-500.0,0.00014296,2]
[421176755,1777210232300,-500.0,0.00014296,2]
[421176756,1777210232309,-500.0,0.00014296,2]
[421176758,1777210232318,-500.0,0.00014296,2]
[421176760,1777210232328,-500.0,0.00014296,2]
[421176762,1777210232337,-337.11091041,0.00014296,2]
[421176764,1777210232347,-500.0,0.00014296,2]
[421176765,1777210232356,-500.0,0.00014296,2]
[421176767,1777210232365,-500.0,0.00014296,2]
[421176769,1777210232375,-500.0,0.00014296,2]
[421176771,1777210232384,-500.0,0.00014296,2]
[421176773,1777210232394,-500.0,0.00014296,2]
[421176775,1777210232403,-500.0,0.00014296,2]
[421176776,1777210232413,-500.0,0.00014296,2]
[421176778,1777210232422,-500.0,0.00014296,2]
[421176780,1777210232432,-500.0,0.00014296,2]
[421176782,1777210232441,-500.0,0.00014296,2]
[421176783,1777210232451,-291.48345815,0.00014296,2]
[421176785,1777210232460,-2345.5141633,0.00014378,2]
[421176787,1777210232470,-151.0,0.00014478,2]
[421176789,1777210232479,-1282.0,0.00014521,2]
[421176791,1777210232489,-300.0,0.00014684,2]
[421176792,1777210232498,-300.0,0.00014684,2]
[421176794,1777210232508,-300.0,0.00014684,2]
[421176796,1777210232518,-300.0,0.00014684,2]
[421176798,1777210232528,-300.0,0.00014684,2]
[421176800,1777210232537,-300.0,0.00014684,2]
[421176802,1777210232547,-300.0,0.00014684,2]
[421176803,1777210232556,-300.0,0.00014684,2]
[421176805,1777210232566,-300.0,0.00014684,2]
[421176807,1777210232575,-300.0,0.00014684,2]
[421176809,1777210232584,-300.0,0.00014684,2]
[421176811,1777210232594,-300.0,0.00014684,2]
[421176813,1777210232605,-300.0,0.00014684,2]
[421176815,1777210232615,-300.0,0.00014684,2]
[421176816,1777210232624,-300.0,0.00014684,2]
[421176818,1777210232634,-600.0,0.00014684,2]
[421176820,1777210232643,-1282.0,0.00014795,2]
[421176822,1777210232652,-1227.16,0.00014795,2]
[421176824,1777210232662,-2046.0,0.00015,2]
[421176825,1777210232671,-1282.0,0.00015068,2]
[421176827,1777210232680,-2345.51416329,0.00015167,2]
[421176829,1777210232690,-378.849,0.00015282,2]
[421176831,1777210232699,-152.0,0.00015329,7]
[421176833,1777210232708,-152.0,0.00015329,7]
[421176835,1777210232718,-1282.0,0.00015342,2]
[421176836,1777210232727,-2240.23843658,0.000155,2]
[421176838,1777210232736,-2240.23843658,0.000156,2]
[421176840,1777210232746,-243.785604,0.000156,2]
[421176842,1777210232755,-1282.0,0.00015616,2]
[421176844,1777210232765,-232.44105249,0.00015699,2]
[421176846,1777210232774,-2240.23843658,0.000158,2]
[421176847,1777210232783,-243.785604,0.000158,2]
[421176849,1777210232793,-1282.0,0.0001589,2]
[421176851,1777210232802,-2240.23843658,0.000159,2]
[421176853,1777210232811,-243.785604,0.000159,2]
[421176855,1777210232821,-2345.51416329,0.00015956,2]
[421176857,1777210232831,-1104.82524881,0.00015973,2]
[421176859,1777210232841,-73827.4467043,0.000161,2]
[421176860,1777210232850,-3000.0,0.000161,2]
[421176862,1777210232860,-2240.23843658,0.000161,2]
[421176864,1777210232869,-243.785604,0.000161,2]
[421176865,1777210232878,-3000.0,0.0001611,2]
[421176867,1777210232888,-3000.0,0.0001612,2]
[421176869,1777210232897,-196.3514541,0.00016122,2]
[421176871,1777210232906,-3000.0,0.0001613,2]
[421176873,1777210232916,-2099.25138607,0.0001614,2]
[421177146,1777210242154,-736.55016587,0.00015973,2]
[421177147,1777210242172,-900.74861393,0.0001614,2]
[421177148,1777210242183,-3000.0,0.0001615,2]
[421177149,1777210242193,-5913.438345,0.0001616,2]
[421177150,1777210242204,-1178.32581662,0.0001616,2]
[421177166,1777210243727,-1410.0,0.0001546,2]
[421177167,1777210243737,-580.70963771,0.0001616,2]
[421177388,1777210246647,-304.0,0.00015973,2]
[421177505,1777210256837,284.425759,0.00025192,120]
[421177515,1777210355787,500.0,0.00025191,120]
[421177541,1777210523536,1444.0,0.00020329,120]
[421177542,1777210523734,1444.0,0.00023781,120]
[421177570,1777210653698,500.0,0.00025185,120]
[421177642,1777210953073,500.0,0.00025185,120]
[421177679,1777211135570,227.0,0.00025185,120]
[421177691,1777211245285,500.0,0.00025186,120]
[421177698,1777211315327,1444.0,0.00020329,120]
[421177699,1777211315457,224.32448358,0.00023781,120]
[421177711,1777211389494,10000.0,0.00024,120]
[421177742,1777211432243,-3669.48577284,0.00012142,10]
[421177744,1777211432252,-2045.46345301,0.00012265,10]
[421177746,1777211432262,-191.57856092,0.00012452,2]
[421177748,1777211432271,-564.57734068,0.00012452,2]
[421177977,1777211443461,-31.42265932,0.00012452,2]
[421177978,1777211443471,-1000.0,0.00013699,2]
[421177979,1777211443481,-500.0,0.00014096,2]
[421177980,1777211443490,-500.0,0.00014096,2]
[421177981,1777211443499,-500.0,0.00014096,2]
[421177982,1777211443509,-500.0,0.00014096,2]
[421177983,1777211443519,-500.0,0.00014096,2]
[421177984,1777211443528,-500.0,0.00014096,2]
[421177985,1777211443537,-500.0,0.00014096,2]
[421177986,1777211443546,-500.0,0.00014096,2]
[421177987,1777211443556,-500.0,0.00014096,2]
[421177988,1777211443565,-500.0,0.00014096,2]
[421177989,1777211443574,-500.0,0.00014096,2]
[421177990,1777211443584,-500.0,0.00014096,2]
[421177992,1777211443593,-81.15052596,0.00014096,2]
[421177993,1777211444785,5000.0,0.00024,120]
[421178003,1777211447121,-418.84947404,0.00014096,2]
[421178004,1777211447131,-554.3072311,0.00014096,2]
[421178005,1777211447140,-500.0,0.00014096,2]
[421178006,1777211447149,-500.0,0.00014096,2]
[421178007,1777211447158,-431.04298148,0.00014096,2]
[421178008,1777211447167,-500.0,0.00014096,2]
[421178009,1777211447176,-537.45676782,0.00014096,2]
[421178010,1777211447186,-25136.74986671,0.00014097,2]
[421178012,1777211451551,180.80093241,0.00025186,120]
[421178013,1777211451870,180.80093241,0.00025186,120]
[421178030,1777211555047,500.0,0.00025186,120]
[421178035,1777211587390,3000.0,0.00025186,120]
[421178062,1777211691566,180.8009324,0.00025186,120]
[421178063,1777211698765,1078.47346362,9.9e-05,10]
[421178065,1777211707132,5000.0,9.9e-05,10]
[421178067,1777211715362,2621.52653638,9.9e-05,10]
[421178085,1777211845006,500.0,0.00025237,120]
[421178110,1777211999486,311.74999901,0.00025237,120]
[421178180,1777212095477,469.3769398,0.00020329,120]
[421178193,1777212153551,500.0,0.00025236,120]
[421178213,1777212272189,-5000.0,9.606e-05,10]
[421178214,1777212273772,-2378.47346362,9.703e-05,10]
[421178215,1777212273798,-558.0,9.826e-05,2]
[421178216,1777212273821,-204.85844069,9.827e-05,2]
[421178217,1777212273844,-395.53982518,0.0001,2]
[421178231,1777212391150,-300.0,0.0001159,2]
[421178232,1777212391173,-300.0,0.0001159,2]
[421178233,1777212391196,-5000.0,0.00011591,2]
[421178234,1777212391218,-226.0,0.00011591,2]
[421178235,1777212391240,-1200.0,0.00011707,2]
[421178236,1777212391262,-5000.0,0.00011708,2]
[421178237,1777212391285,-300.0,0.00011825,2]
[421178238,1777212391306,-300.0,0.00011825,2]
[421178239,1777212391327,-300.0,0.00011825,2]
[421178240,1777212391349,-241.73296001,0.00011827,2]
[421178241,1777212391373,-300.0,0.00011941,2]
[421178242,1777212391396,-300.0,0.00011941,2]
[421178243,1777212391419,-300.0,0.00011941,2]
[421178244,1777212391444,-300.0,0.00011941,2]
[421178245,1777212391467,-300.0,0.00011941,2]
[421178246,1777212391491,-300.0,0.00011941,2]
[421178247,1777212391514,-300.0,0.00011941,2]
[421178248,1777212391537,-300.0,0.00011941,2]
[421178250,1777212391562,-300.0,0.00011941,2]
[421178251,1777212391585,-300.0,0.00011941,2]
[421178252,1777212391610,-300.0,0.00011941,2]
[421178253,1777212391634,-280.88292899,0.00011941,2]
[421178260,1777212445554,500.0,0.00025241,120]
[421178278,1777212623808,4481.14989446,0.00025241,120]
[421178334,1777212638788,-1101.51139586,0.00011471,10]
[421178336,1777212638797,-5000.0,0.00011587,10]
[421178338,1777212638807,-195.92661267,0.00011763,2]
[421178340,1777212638816,-209.0,0.00012178,2]
[421178341,1777212638826,-300.0,0.00012178,2]
[421178343,1777212638836,-300.0,0.00012178,2]
[421178346,1777212638846,-300.0,0.00012178,2]
[421178347,1777212638856,-300.0,0.00012178,2]
[421178349,1777212638866,-1200.0,0.00012178,2]
[421178350,1777212638876,-32071.06369333,0.00012179,2]
[421178352,1777212638886,-300.0,0.00012179,2]
[421178353,1777212638898,-300.0,0.00012179,2]
[421178355,1777212638908,-300.0,0.00012179,2]
[421178356,1777212638918,-300.0,0.00012179,2]
[421178358,1777212638931,-300.0,0.00012179,2]
[421178360,1777212638940,-300.0,0.00012179,2]
[421178362,1777212638950,-300.0,0.00012179,2]
[421178364,1777212638959,-300.0,0.00012179,2]
[421178366,1777212638969,-300.0,0.00012179,2]
[421178368,1777212638980,-300.0,0.00012179,2]
[421178370,1777212638991,-300.0,0.00012179,2]
[421178372,1777212639001,-300.0,0.00012179,2]
[421178374,1777212639012,-300.0,0.00012179,2]
[421178376,1777212639022,-300.0,0.00012179,2]
[421178378,1777212639032,-300.0,0.00012179,2]
[421178380,1777212639042,-600.0,0.00012422,2]
[421178382,1777212639053,-3289.88651579,0.00012592,2]
[421178383,1777212639062,-150.0,0.000126,2]
[421178384,1777212639071,-152.0,0.00012621,7]
[421178385,1777212639082,-152.0,0.00012621,7]
[421178386,1777212639092,-152.0,0.00012633,7]
[421178387,1777212639102,-152.0,0.00012633,7]
[421178388,1777212639111,-186.41,0.000127,2]
[421178389,1777212639121,-1638.07797686,0.000129,2]
[421178390,1777212639131,-14872.72843062,0.00013,2]
[421178391,1777212639141,-200.0,0.00013151,2]
[421178392,1777212639151,-200.14275595,0.00013151,2]
[421178393,1777212639160,-1638.07797686,0.00013196,2]
[421178394,1777212639170,-192.30560319,0.00013365,14]
[421178395,1777212639180,-420.0,0.00013366,2]
[421178396,1777212639191,-420.0,0.00013366,2]
[421178397,1777212639201,-420.0,0.00013366,2]
[421178398,1777212639211,-420.0,0.00013366,2]
[421178399,1777212639221,-1680.0,0.00013396,2]
[421178400,1777212639231,-720.0,0.00013664,2]
[421178401,1777212639240,-500.0,0.00013698,2]
[421178402,1777212639250,-500.0,0.00013698,2]
[421178403,1777212639259,-516.31439713,0.00013698,2]
[421178405,1777212639269,-1000.0,0.00013699,2]
[421178406,1777212639278,-231.19340295,0.00013763,2]
[421178407,1777212639288,-500.0,0.00013856,7]
[421178408,1777212639298,-152.0,0.00013856,7]
[421178409,1777212639307,-165.0,0.000139,2]
[421178410,1777212639317,-183.99,0.0001403,2]
[421178411,1777212639327,-449.39,0.0001403,2]
[421178412,1777212639337,-500.0,0.0001413,7]
[421178413,1777212639347,-1638.07797686,0.00014314,2]
[421178414,1777212639356,-500.0,0.00014404,7]
[421178415,1777212639365,-164.0,0.000145,3]
[421178416,1777212639375,-587.0,0.00014671,2]
[421178417,1777212639384,-587.0,0.00014671,2]
[421178418,1777212639394,-587.0,0.00014671,2]
[421178419,1777212639403,-500.0,0.00014678,7]
[421178420,1777212639413,-2351.0,0.00014735,2]
[421178421,1777212639422,-159.97409204,0.00014955,2]
[421178422,1777212639432,-864.0,0.0001503,2]
[421178423,1777212639442,-390.0,0.00015068,2]
[421178424,1777212639451,-1638.07797686,0.00015431,2]
[421178425,1777212639460,-1273.894,0.00015462,2]
[421178426,1777212639470,-646.0,0.00015462,2]
[421178427,1777212639479,-1120.11921829,0.000155,2]
[421178428,1777212639489,-164.0,0.000155,3]
[421178429,1777212639498,-243.78560401,0.000156,2]
[421178430,1777212639508,-1120.11921829,0.000156,2]
[421178431,1777212639518,-303.079,0.00015614,2]
[421178432,1777212639527,-266.46019323,0.00015763,2]
[421178433,1777212639536,-1120.11921829,0.000158,2]
[421178434,1777212639546,-1120.11921829,0.000159,2]
[421178435,1777212639555,-165.38677871,0.000159,4]
[421178436,1777212639565,-635.21683254,0.00015973,2]
[421178437,1777212639574,-3000.0,0.00016,2]
[421178438,1777212639584,-3000.0,0.0001601,2]
[421178439,1777212639594,-3814.186959,0.0001602,2]
[421178440,1777212639603,-1120.11921829,0.000161,2]
[421178441,1777212639613,-195.0,0.00016102,2]
[421178442,1777212639622,-823.0,0.00016102,2]
[421178443,1777212639632,-521.0,0.00016124,2]
[421178444,1777212639642,-37452.55873975,0.0001616,2]
[421178445,1777212639652,-1282.0,0.00016164,2]
[421178446,1777212639661,-1120.11921829,0.000162,2]
[421178447,1777212639671,-3292.0,0.00016209,2]
[421178448,1777212639681,-160.0,0.00016326,2]
[421178449,1777212639691,-2570.0,0.000164,4]
[421178450,1777212639700,-1120.11921829,0.000164,2]
[421178451,1777212639710,-203.56480363,0.00016427,30]
[421178452,1777212639720,-301.73008703,0.00016437,2]
[421178453,1777212639731,-515.21259978,0.00016438,3]
[421178454,1777212639740,-38000.0,0.00016438,3]
[421178455,1777212639750,-7818.47203088,0.00016438,3]
[421178456,1777212639760,-181.0,0.00016438,2]
[421178457,1777212639771,-1282.0,0.00016438,2]
[421178458,1777212639781,-488.58,0.00016438,2]
[421178459,1777212639791,-178.0,0.00016493,3]
[421178460,1777212639802,-1000.0,0.00016533,2]
[421178461,1777212639811,-1638.07797686,0.00016548,2]
[421178462,1777212639821,-123861.28403823,0.0001656,2]
[421178463,1777212639834,-789276.35358007,0.0001656,2]
[421178464,1777212639850,-3500.0,0.0001656,2]
[421178465,1777212639862,-121578.11896794,0.0001656,2]
[421178516,1777212640955,-794.2615,0.0001656,2]
[421178522,1777212641010,-1986.490239,0.0001656,2]
[421178799,1777212644165,-20000.0,0.00014065,2]
[421178802,1777212644177,-46229.545366,0.00014065,2]
[421178828,1777212644417,-1860.957321,0.00014065,2]
[421179147,1777212648005,-8578.59281448,0.00014065,2]
[421179493,1777212663395,712.86965415,0.00025241,120]
[421179501,1777212756077,500.0,0.00025244,120]
[421179512,1777212918436,-5000.0,0.00013232,10]
[421179515,1777212936919,-2000.0,0.00013232,10]
[421179519,1777212957648,-3000.0,0.00013232,10]
[421179526,1777212986828,-170.454634,0.00013365,14]
[421179527,1777212986852,-829.545366,0.00013476,2]
[421179530,1777213007751,-4170.454634,0.00013476,2]
[421179531,1777213007776,-182.05500849,0.00013613,2]
[421179532,1777213007800,-647.49035751,0.00013699,2]
[421179536,1777213045342,500.0,0.00025179,120]
[421179538,1777213062129,-645.0,0.00013562,2]
[421179539,1777213081363,-2500.0,0.00013562,2]
[421179540,1777213099070,-1855.0,0.00013562,2]
[421179541,1777213099092,-352.50964249,0.00013699,2]
[421179542,1777213099115,-10.49035751,0.00014,2]
[421179544,1777213118658,-5000.0,0.0001386,10]
[421179547,1777213188231,-5000.0,0.0001386,2]
[421179548,1777213188255,-178.41390832,0.0001393,2]
[421179549,1777213188278,-182.09964249,0.00014,2]
[421179550,1777213196127,223.48644919,0.00014,2]
[421179551,1777213223107,-1000.0,0.00013699,2]
[421179553,1777213237515,-282.0,0.00013965,2]
[421179554,1777213344702,500.0,0.00025179,120]
[421179559,1777213652823,500.0,0.0002518,120]
[421179560,1777213821574,500.0,0.00024657,120]
[421179651,1777213840124,-170.454634,0.00013365,14]
[421179652,1777213840134,-174.84563016,0.00013396,2]
[421179653,1777213840144,-5000.0,0.00013426,10]
[421179654,1777213840153,-1000.0,0.00013699,2]
[421179655,1777213840163,-300.0,0.00013863,2]
[421179656,1777213840177,-1200.0,0.00013863,2]
[421179657,1777213840187,-287.0,0.00013863,2]
[421179658,1777213840197,-211.21106093,0.00013864,2]
[421179659,1777213840207,-493.22831572,0.00013864,2]
[421179660,1777213840217,-500.0,0.00013864,2]
[421179661,1777213840227,-500.0,0.00013864,2]
[421179662,1777213840237,-500.0,0.00013864,2]
[421179663,1777213840247,-394.92302568,0.00013864,2]
[421179664,1777213840257,-500.0,0.00013864,2]
[421179665,1777213840267,-500.0,0.00013864,2]
[421179666,1777213840277,-500.0,0.00013864,2]
[421179667,1777213840287,-500.0,0.00013864,2]
[421179668,1777213840297,-500.0,0.00013864,2]
[421179669,1777213840307,-500.0,0.00013864,2]
[421179670,1777213840316,-500.0,0.00013864,2]
[421179671,1777213840326,-500.0,0.00013864,2]
[421179672,1777213840336,-500.0,0.00013864,2]
[421179673,1777213840346,-500.0,0.00013864,2]
[421179674,1777213840355,-500.0,0.00013864,2]
[421179675,1777213840366,-500.0,0.00013864,2]
[421179676,1777213840376,-500.0,0.00013864,2]
[421179677,1777213840385,-228.24455892,0.00013864,2]
[421179689,1777213843084,-271.75544108,0.00013864,2]
[421179690,1777213843094,-376.7,0.00013864,2]
[421179691,1777213843103,-500.0,0.00013864,2]
[421179692,1777213843113,-500.0,0.00013864,2]
[421179693,1777213843122,-500.0,0.00013864,2]
[421179694,1777213843132,-500.0,0.00013864,2]
[421179695,1777213843141,-500.0,0.00013864,2]
[421179696,1777213843150,-500.0,0.00013864,2]
[421179697,1777213843160,-500.0,0.00013864,2]
[421179698,1777213843169,-500.0,0.00013864,2]
[421179699,1777213843178,-500.0,0.00013864,2]
[421179700,1777213843188,-500.0,0.00013864,2]
[421179701,1777213843198,-200.36999537,0.00013864,2]
[421179702,1777213843207,-5835.53708513,0.00013865,2]
[421179713,1777213846061,-7841.18741079,0.00013865,2]
[421179714,1777213846116,-11644.39059755,0.00013865,2]
[421179720,1777213919203,-2294.4299235,0.00013726,10]
[421179725,1777213953849,500.0,0.0002518,120]
[421179734,1777214245170,500.0,0.00025183,120]
[421179739,1777214544189,361.6,0.00025184,120]
[421179756,1777214995233,-5000.0,0.00012846,10]
[421179757,1777214995255,-200.0,0.00012976,2]
[421179758,1777214995276,-553.0,0.00012976,2]
[421179759,1777214995299,-118.0,0.00013005,2]
[421179784,1777215032010,-5000.0,0.00012875,10]
[421179786,1777215032019,-77.71770708,0.00013005,2]
[421179787,1777215032028,-170.454634,0.00013365,14]
[421179788,1777215032038,-192.59,0.00013602,2]
[421179789,1777215032047,-300.0,0.00013663,2]
[421179790,1777215032056,-287.0,0.00013663,2]
[421179791,1777215032065,-1200.0,0.00013663,2]
[421179792,1777215032074,-211.21106093,0.00013664,2]
[421179793,1777215032084,-493.22831572,0.00013664,2]
[421179794,1777215032095,-500.0,0.00013664,2]
[421179795,1777215032104,-500.0,0.00013664,2]
[421179796,1777215032113,-500.0,0.00013664,2]
[421179797,1777215032123,-394.92302568,0.00013664,2]
[421179798,1777215032132,-500.0,0.00013664,2]
[421179799,1777215032142,-500.0,0.00013664,2]
[421179800,1777215032152,-500.0,0.00013664,2]
[421179802,1777215032162,-500.0,0.00013664,2]
[421179804,1777215032171,-500.0,0.00013664,2]
[421179806,1777215032180,-500.0,0.00013664,2]
[421179807,1777215032189,-500.0,0.00013664,2]
[421179808,1777215032198,-500.0,0.00013664,2]
[421179809,1777215032208,-500.0,0.00013664,2]
[421179810,1777215032217,-293.09010303,0.00013664,2]
[421179811,1777215032226,-500.0,0.00013664,2]
[421179812,1777215032236,-500.0,0.00013664,2]
[421179813,1777215032246,-500.0,0.00013664,2]
[421179814,1777215032255,-500.0,0.00013664,2]
[421179815,1777215032264,-500.0,0.00013664,2]
[421179816,1777215032273,-200.0,0.00013664,2]
[421179817,1777215032282,-33530.81309264,0.00013665,2]
[421179821,1777215036218,5000.0,0.00012746,10]
[421179830,1777215038390,-12698.73227336,0.00013665,2]
[421179831,1777215038400,-298630.94538909,0.00013665,2]
[421179832,1777215038410,-1619.52567759,0.00013698,2]
[421179833,1777215038419,-1000.0,0.00013699,2]
[421179834,1777215038429,-242.463,0.00013764,2]
[421179835,1777215038439,-600.0,0.00014345,2]
[421179836,1777215038448,-300.0,0.00014345,2]
[421179837,1777215038458,-152.0,0.00014447,7]
[421179838,1777215038468,-457.8462624,0.00014548,2]
[421179839,1777215038478,-151.0,0.00014824,2]
[421179840,1777215038487,-507.48407234,0.000149,2]
[421179841,1777215038496,-548.32668094,0.000149,2]
[421179842,1777215038506,-1176.8280785,0.000149,2]
[421179843,1777215038515,-420.0,0.00014974,2]
[421179844,1777215038525,-202533.29874442,0.00015,2]
[421179854,1777215040516,-15620.62956839,0.00015,2]
[421179855,1777215040547,-60538.66193387,0.00015,2]
[421179867,1777215044072,-10000.0,0.00015,2]
[421179922,1777215046386,-25841.8374,0.00015,2]
[421179945,1777215046609,-163164.27188,0.00015,2]
[421179948,1777215046621,-21301.20028,0.00015,2]
[421179952,1777215046655,-378.06490279,0.00015,2]
[421180025,1777215051640,220.01042186,0.00025184,120]
[421180026,1777215051680,234.97908953,0.00025184,120]
[421180027,1777215052107,264.50537343,0.00025184,120]
[421180034,1777215161197,-968.47842936,0.00013465,2]
[421180037,1777215202337,5974.67697491,0.000246,120]
[421180041,1777215234190,5495.20373509,0.00025184,120]
[421180043,1777215250075,1927.52157064,0.000135,2]
[421180056,1777215662260,-300.0,7.599e-05,2]
[421180057,1777215662279,-300.0,7.6e-05,2]
[421180058,1777215662294,-4335.37447876,7.6e-05,2]
[421180059,1777215742267,-300.0,7.523e-05,2]
[421180060,1777215742292,-204.08298745,7.524e-05,2]
[421180061,1777215742317,-4935.37447876,7.524e-05,2]
[421180062,1777215742340,-526.0,7.524e-05,2]
[421180063,1777215742365,-4034.54253379,7.6e-05,2]
[421180064,1777215744552,-10000.0,7.6e-05,2]
[421180065,1777215744995,-10000.0,7.6e-05,2]
[421180066,1777215745355,-10000.0,7.6e-05,2]
[421180067,1777215745698,-10000.0,7.6e-05,2]
[421180068,1777215746022,-1687.45238841,7.6e-05,2]
[421180069,1777215746045,-1619.52567759,7.751e-05,2]
[421180070,1777215746070,-300.0,7.751e-05,2]
[421180071,1777215746095,-300.0,7.751e-05,2]
[421180072,1777215746119,-300.0,7.751e-05,2]
[421180073,1777215746143,-300.0,7.751e-05,2]
[421180074,1777215746167,-300.0,7.751e-05,2]
[421180075,1777215746191,-300.0,7.751e-05,2]
[421180076,1777215746215,-300.0,7.751e-05,2]
[421180077,1777215746240,-300.0,7.751e-05,2]
[421180078,1777215746265,-300.0,7.751e-05,2]
[421180079,1777215746289,-300.0,7.751e-05,2]
[421180080,1777215746316,-300.0,7.751e-05,2]
[421180081,1777215746341,-300.0,7.751e-05,2]
[421180082,1777215746367,-300.0,7.751e-05,2]
[421180083,1777215746394,-300.0,7.751e-05,2]
[421180084,1777215746420,-300.0,7.751e-05,2]
[421180085,1777215746446,-600.0,7.905e-05,2]
[421180086,1777215757212,-420.0,8.275e-05,2]
[421180087,1777215768960,-587.0,9.103e-05,2]
[421180088,1777215768983,-240.81792519,9.523e-05,2]
[421180109,1777216151140,-1330.0,9.703e-05,2]
[421180110,1777216151163,-300.0,9.8e-05,2]
[421180111,1777216151189,-5000.0,9.801e-05,2]
[421180112,1777216151211,-557.0,9.801e-05,2]
[421180113,1777216151235,-214.11967715,9.85e-05,2]
[421180114,1777216151258,-2378.47346362,9.9e-05,2]
[421180115,1777216151282,-395.53982518,0.0001,2]
[421180116,1777216151306,-1200.0,0.00010054,2]
[421180117,1777216151333,-300.0,0.00010255,2]
[421180118,1777216151357,-300.0,0.00010255,2]
[421180119,1777216151383,-300.0,0.00010255,2]
[421180120,1777216151407,-300.0,0.00010255,2]
[421180121,1777216151434,-300.0,0.00010255,2]
[421180122,1777216151458,-300.0,0.00010255,2]
[421180123,1777216151483,-162.24877985,0.00010255,2]
[421180126,1777216232322,-5000.0,0.00010152,2]
[421180127,1777216232331,-300.0,0.00010254,2]
[421180128,1777216232341,-1009.0,0.00010254,2]
[421180129,1777216232350,-137.75122015,0.00010255,2]
[421180130,1777216232360,-300.0,0.00010255,2]
[421180131,1777216232369,-300.0,0.00010255,2]
[421180132,1777216232379,-300.0,0.00010255,2]
[421180133,1777216232388,-300.0,0.00010255,2]
[421180134,1777216232398,-300.0,0.00010255,2]
[421180135,1777216232407,-300.0,0.00010255,2]
[421180136,1777216232417,-300.0,0.00010255,2]
[421180137,1777216232427,-300.0,0.00010255,2]
[421180138,1777216232436,-4.36121599,0.00010255,2]
[421180298,1777216238624,-420.0,0.00011277,2]
[421180299,1777216238634,-252.66121903,0.0001185,2]
[421180300,1777216238644,-152.0,0.00012363,7]
[421180301,1777216238655,-152.0,0.00012385,7]
[421180302,1777216238665,-151.0,0.00013099,2]
[421180303,1777216238675,-600.0,0.00013157,2]
[421180304,1777216238685,-151.0,0.00013231,2]
[421180305,1777216238695,-151.0,0.00013231,2]
[421180306,1777216238704,-170.454634,0.00013233,14]
[421180307,1777216238714,-170.999,0.00013699,2]
[421180308,1777216238724,-1000.0,0.00013699,2]
[421180309,1777216238734,-152.0,0.00013701,7]
[421180310,1777216238744,-152.0,0.00013701,7]
[421180311,1777216238754,-291.20276092,0.0001385,2]
[421180312,1777216238764,-720.0,0.00014473,2]
[421180313,1777216238775,-744.757,0.00014876,2]
[421180314,1777216238785,-185.0,0.00014876,2]
[421180315,1777216238794,-442.0,0.00014876,2]
[421180316,1777216238804,-15229.73698941,0.00015,2]
[421180318,1777216238814,-339.0,0.00015,14]
[421180319,1777216238824,-160.0,0.00015037,3]